[Event "Early-Titled-Tuesday-Blitz-May-14-2024"]
[Site "Chess.com"]
[Date "2024.05.14"]
[Round "10"]
[White "chessburger_tv"]
[Black "Grossboss19"]
[Result "0-1"]
[WhiteElo "2417"]
[BlackElo "2635"]
[TimeControl "180+1"]
[EndTime "9:57:56 PDT"]
[Termination "Grossboss19 won by checkmate"]

1. Nf3 {[%clk 0:02:59.2]} 1... Nf6 {[%clk 0:02:47]} 2. g3 {[%clk 0:03:00.1]}
2... g6 {[%clk 0:02:47]} 3. Bg2 {[%clk 0:03:01]} 3... Bg7 {[%clk 0:02:47.1]} 4.
O-O {[%clk 0:03:01.9]} 4... O-O {[%clk 0:02:47.7]} 5. d3 {[%clk 0:03:02.1]} 5...
c5 {[%clk 0:02:47.8]} 6. e4 {[%clk 0:03:02.6]} 6... Nc6 {[%clk 0:02:44.7]} 7.
Nbd2 {[%clk 0:03:03]} 7... e6 {[%clk 0:02:37.6]} 8. Re1 {[%clk 0:03:03.4]} 8...
d5 {[%clk 0:02:36.6]} 9. h4 {[%clk 0:02:49.3]} 9... h5 {[%clk 0:02:27.7]} 10.
Qe2 {[%clk 0:02:45.1]} 10... b6 {[%clk 0:02:22.3]} 11. c3 {[%clk 0:02:42.3]}
11... Ba6 {[%clk 0:02:18.3]} 12. Ng5 {[%clk 0:02:22.9]} 12... dxe4 {[%clk
0:02:06.4]} 13. Ndxe4 {[%clk 0:02:19.5]} 13... Bxd3 {[%clk 0:02:05.2]} 14. Nxf6+
{[%clk 0:02:07.5]} 14... Bxf6 {[%clk 0:02:01.1]} 15. Qf3 {[%clk 0:02:08.4]}
15... Rc8 {[%clk 0:01:47.4]} 16. Rd1 {[%clk 0:02:00]} 16... c4 {[%clk
0:01:47.4]} 17. Bf4 {[%clk 0:01:50.8]} 17... e5 {[%clk 0:01:37.8]} 18. Be3
{[%clk 0:01:46.4]} 18... Bxg5 {[%clk 0:01:34.3]} 19. Bxg5 {[%clk 0:01:45.1]}
19... f6 {[%clk 0:01:34.8]} 20. Bh6 {[%clk 0:01:42.4]} 20... Re8 {[%clk
0:01:31.5]} 21. Bf1 {[%clk 0:01:30]} 21... e4 {[%clk 0:01:27.2]} 22. Qf4 {[%clk
0:01:29.1]} 22... Ne5 {[%clk 0:01:20.6]} 23. Bg2 {[%clk 0:01:28]} 23... f5
{[%clk 0:01:17]} 24. b3 {[%clk 0:01:24.6]} 24... Qe7 {[%clk 0:01:12.4]} 25. Bg5
{[%clk 0:01:16]} 25... Qc7 {[%clk 0:01:07.5]} 26. bxc4 {[%clk 0:01:05.3]} 26...
Nxc4 {[%clk 0:01:04.6]} 27. Qxc7 {[%clk 0:00:55.2]} 27... Rxc7 {[%clk
0:01:05.5]} 28. Bf4 {[%clk 0:00:55.7]} 28... Rcc8 {[%clk 0:01:01.8]} 29. a4
{[%clk 0:00:54.4]} 29... Na5 {[%clk 0:01:00.8]} 30. Rac1 {[%clk 0:00:39.2]}
30... Rc4 {[%clk 0:00:57.3]} 31. Be3 {[%clk 0:00:24.6]} 31... Rec8 {[%clk
0:00:52.9]} 32. Bd4 {[%clk 0:00:24.7]} 32... Nb3 {[%clk 0:00:51.1]} 33. Rxd3
{[%clk 0:00:12.9]} 33... Nxd4 {[%clk 0:00:38.6]} 34. Rd2 {[%clk 0:00:09.8]}
34... Nb3 {[%clk 0:00:36.3]} 35. Rcd1 {[%clk 0:00:08.3]} 35... Nxd2 {[%clk
0:00:36.3]} 36. Rxd2 {[%clk 0:00:09.2]} 36... Rxc3 {[%clk 0:00:36.5]} 37. Rd7
{[%clk 0:00:10.1]} 37... R3c7 {[%clk 0:00:36.1]} 38. Rd6 {[%clk 0:00:10.4]}
38... Rc6 {[%clk 0:00:36.5]} 39. Rd7 {[%clk 0:00:10.6]} 39... R8c7 {[%clk
0:00:37]} 40. Rd8+ {[%clk 0:00:11.2]} 40... Kg7 {[%clk 0:00:37.7]} 41. Bf1
{[%clk 0:00:11.9]} 41... Rc1 {[%clk 0:00:36.9]} 42. Kg2 {[%clk 0:00:12.3]} 42...
Kf6 {[%clk 0:00:32.5]} 43. a5 {[%clk 0:00:09]} 43... bxa5 {[%clk 0:00:32]} 44.
Rd6+ {[%clk 0:00:09.1]} 44... Kg7 {[%clk 0:00:30.8]} 45. Ra6 {[%clk 0:00:09.4]}
45... R1c5 {[%clk 0:00:30.3]} 46. Be2 {[%clk 0:00:07.5]} 46... Kh6 {[%clk
0:00:28]} 47. f3 {[%clk 0:00:07.7]} 47... Rc2 {[%clk 0:00:25.6]} 48. Kf2 {[%clk
0:00:07.7]} 48... exf3 {[%clk 0:00:25.4]} 49. Kxf3 {[%clk 0:00:08.6]} 49...
R7c3+ {[%clk 0:00:23]} 50. Kf4 {[%clk 0:00:07.8]} 50... Rxe2 {[%clk 0:00:19.8]}
51. g4 {[%clk 0:00:08.7]} 51... Re4# {[%clk 0:00:19.6]} 0-1

[Event "Early-Titled-Tuesday-Blitz-May-14-2024"]
[Site "Chess.com"]
[Date "2024.05.14"]
[Round "10"]
[White "Timerkhanov"]
[Black "urano56"]
[Result "1-0"]
[WhiteElo "2694"]
[BlackElo "2428"]
[TimeControl "180+1"]
[EndTime "9:57:59 PDT"]
[Termination "Timerkhanov won by checkmate"]

1. d4 {[%clk 0:03:00.9]} 1... Nf6 {[%clk 0:02:45.2]} 2. Bg5 {[%clk 0:03:01.1]}
2... Ne4 {[%clk 0:02:42.7]} 3. h4 {[%clk 0:03:00.6]} 3... c5 {[%clk 0:02:41.5]}
4. d5 {[%clk 0:02:58.4]} 4... g6 {[%clk 0:02:40.9]} 5. Nd2 {[%clk 0:02:53.3]}
5... Nxg5 {[%clk 0:02:32.5]} 6. hxg5 {[%clk 0:02:53.3]} 6... Bg7 {[%clk
0:02:32.8]} 7. c3 {[%clk 0:02:53.7]} 7... d6 {[%clk 0:02:31.7]} 8. e4 {[%clk
0:02:53.7]} 8... e6 {[%clk 0:02:28.4]} 9. Ngf3 {[%clk 0:02:30]} 9... exd5 {[%clk
0:02:25.8]} 10. exd5 {[%clk 0:02:30.9]} 10... O-O {[%clk 0:02:25.8]} 11. Be2
{[%clk 0:02:26.4]} 11... Nd7 {[%clk 0:02:24.9]} 12. Qa4 {[%clk 0:02:23.3]} 12...
Re8 {[%clk 0:02:10.8]} 13. Qh4 {[%clk 0:02:22.4]} 13... Nf8 {[%clk 0:02:10.6]}
14. Kf1 {[%clk 0:02:23]} 14... f6 {[%clk 0:02:04.2]} 15. gxf6 {[%clk 0:02:15.8]}
15... Qxf6 {[%clk 0:02:04.1]} 16. Ng5 {[%clk 0:02:02.3]} 16... h6 {[%clk
0:01:56.6]} 17. Nde4 {[%clk 0:02:02.1]} 17... Qe7 {[%clk 0:01:50]} 18. Ne6
{[%clk 0:01:39]} 18... Nxe6 {[%clk 0:01:37.6]} 19. Qxe7 {[%clk 0:01:30.2]} 19...
Rxe7 {[%clk 0:01:36.8]} 20. dxe6 {[%clk 0:01:30.9]} 20... Bxe6 {[%clk
0:01:34.6]} 21. Nxd6 {[%clk 0:01:29.7]} 21... Rd8 {[%clk 0:01:33]} 22. Ne4
{[%clk 0:01:25.2]} 22... b6 {[%clk 0:01:29.8]} 23. Bf3 {[%clk 0:01:08]} 23...
Bc4+ {[%clk 0:01:26.6]} 24. Kg1 {[%clk 0:01:07.7]} 24... a5 {[%clk 0:01:13.1]}
25. a3 {[%clk 0:00:46.1]} 25... Red7 {[%clk 0:01:00]} 26. Kh2 {[%clk 0:00:45.2]}
26... Bd3 {[%clk 0:00:58.3]} 27. Rhe1 {[%clk 0:00:42.7]} 27... Bc2 {[%clk
0:00:47.3]} 28. Rac1 {[%clk 0:00:37.1]} 28... Bb3 {[%clk 0:00:46.2]} 29. Re2
{[%clk 0:00:35]} 29... Rf8 {[%clk 0:00:36.8]} 30. Kg1 {[%clk 0:00:33.8]} 30...
Bd1 {[%clk 0:00:35]} 31. Rd2 {[%clk 0:00:32.5]} 31... Rxd2 {[%clk 0:00:31.7]}
32. Nxd2 {[%clk 0:00:32.5]} 32... Bb3 {[%clk 0:00:32]} 33. Nxb3 {[%clk
0:00:32.3]} 33... Rd8 {[%clk 0:00:28.3]} 34. Rd1 {[%clk 0:00:32.4]} 34... Re8
{[%clk 0:00:26.5]} 35. Bd5+ {[%clk 0:00:31.7]} 35... Kh7 {[%clk 0:00:26.2]} 36.
Nd2 {[%clk 0:00:32]} 36... Re2 {[%clk 0:00:23.4]} 37. Kf1 {[%clk 0:00:31.8]}
37... Re5 {[%clk 0:00:23.3]} 38. Ne4 {[%clk 0:00:31.8]} 38... Bf8 {[%clk
0:00:20]} 39. a4 {[%clk 0:00:22.7]} 39... Be7 {[%clk 0:00:19.5]} 40. f3 {[%clk
0:00:22.6]} 40... Rh5 {[%clk 0:00:19.4]} 41. Kf2 {[%clk 0:00:21.9]} 41... Kg7
{[%clk 0:00:19.5]} 42. Bc4 {[%clk 0:00:21.7]} 42... Bh4+ {[%clk 0:00:18.9]} 43.
g3 {[%clk 0:00:20.8]} 43... Be7 {[%clk 0:00:18.8]} 44. Rd7 {[%clk 0:00:21.4]}
44... Kf8 {[%clk 0:00:17.9]} 45. Ke3 {[%clk 0:00:21.6]} 45... Rh2 {[%clk
0:00:17.8]} 46. b3 {[%clk 0:00:21.4]} 46... Rc2 {[%clk 0:00:16.6]} 47. Rb7
{[%clk 0:00:21.5]} 47... Bd8 {[%clk 0:00:13.1]} 48. Rf7+ {[%clk 0:00:16.6]}
48... Ke8 {[%clk 0:00:12.8]} 49. Nd6# {[%clk 0:00:16.7]} 1-0

[Event "Early-Titled-Tuesday-Blitz-May-14-2024"]
[Site "Chess.com"]
[Date "2024.05.14"]
[Round "10"]
[White "MITerryble"]
[Black "Hope_6"]
[Result "0-1"]
[WhiteElo "3013"]
[BlackElo "2682"]
[TimeControl "180+1"]
[EndTime "9:58:04 PDT"]
[Termination "Hope_6 won by resignation"]

1. e4 {[%clk 0:02:56.2]} 1... c5 {[%clk 0:02:58.7]} 2. Nf3 {[%clk 0:02:54.6]}
2... Nf6 {[%clk 0:02:58]} 3. Qe2 {[%clk 0:02:49.1]} 3... Nc6 {[%clk 0:02:45.6]}
4. c3 {[%clk 0:02:44.5]} 4... d5 {[%clk 0:02:17.3]} 5. e5 {[%clk 0:02:42.9]}
5... Ng8 {[%clk 0:02:16.6]} 6. d3 {[%clk 0:02:22.8]} 6... Bg4 {[%clk 0:02:15.1]}
7. Bf4 {[%clk 0:02:19.3]} 7... e6 {[%clk 0:02:07.4]} 8. h3 {[%clk 0:02:17.7]}
8... Bxf3 {[%clk 0:02:03.2]} 9. Qxf3 {[%clk 0:02:18.6]} 9... Qb6 {[%clk
0:02:02.9]} 10. Qe2 {[%clk 0:02:16.8]} 10... Nge7 {[%clk 0:02:00.8]} 11. Bh2
{[%clk 0:02:07.2]} 11... g6 {[%clk 0:01:55.7]} 12. g4 {[%clk 0:02:06.8]} 12...
Bg7 {[%clk 0:01:53.7]} 13. Bg2 {[%clk 0:02:07.3]} 13... O-O {[%clk 0:01:49.5]}
14. O-O {[%clk 0:02:07.5]} 14... Qc7 {[%clk 0:01:37.8]} 15. f4 {[%clk
0:02:07.7]} 15... Rab8 {[%clk 0:01:32.8]} 16. Nd2 {[%clk 0:02:07.4]} 16... b5
{[%clk 0:01:30.5]} 17. Nf3 {[%clk 0:02:07.7]} 17... b4 {[%clk 0:01:28.3]} 18. c4
{[%clk 0:02:07.7]} 18... Rbd8 {[%clk 0:01:24]} 19. Rac1 {[%clk 0:02:06]} 19...
Qa5 {[%clk 0:01:20.2]} 20. b3 {[%clk 0:02:05.2]} 20... dxc4 {[%clk 0:01:16.2]}
21. dxc4 {[%clk 0:02:00.4]} 21... Nd4 {[%clk 0:01:13.5]} 22. Nxd4 {[%clk
0:01:58]} 22... Rxd4 {[%clk 0:01:14.4]} 23. Rce1 {[%clk 0:01:56]} 23... Rfd8
{[%clk 0:01:08]} 24. Rf2 {[%clk 0:01:55.8]} 24... Qa6 {[%clk 0:00:56.1]} 25. Kh1
{[%clk 0:01:55.2]} 25... R4d7 {[%clk 0:00:53.2]} 26. Qe3 {[%clk 0:01:54.7]}
26... Qb6 {[%clk 0:00:49.2]} 27. Rfe2 {[%clk 0:01:52.8]} 27... Nc6 {[%clk
0:00:48.4]} 28. f5 {[%clk 0:01:52.4]} 28... Nd4 {[%clk 0:00:46.8]} 29. Rf2
{[%clk 0:01:44.4]} 29... exf5 {[%clk 0:00:44.7]} 30. Bd5 {[%clk 0:01:39.1]}
30... Re7 {[%clk 0:00:39.6]} 31. gxf5 {[%clk 0:01:36.9]} 31... Nxf5 {[%clk
0:00:38.7]} 32. Rxf5 {[%clk 0:01:37.2]} 32... gxf5 {[%clk 0:00:37.8]} 33. Qg5
{[%clk 0:01:37.8]} 33... Kf8 {[%clk 0:00:28.6]} 34. Rg1 {[%clk 0:01:34.1]} 34...
Qg6 {[%clk 0:00:27.7]} 35. Qf4 {[%clk 0:01:34.3]} 35... Qh5 {[%clk 0:00:23]} 36.
Qe3 {[%clk 0:01:26]} 36... f4 {[%clk 0:00:19.5]} 37. Bxf4 {[%clk 0:01:19.8]}
37... Rxe5 {[%clk 0:00:18.6]} 38. Bxe5 {[%clk 0:01:18.2]} 38... Qxe5 {[%clk
0:00:18.9]} 39. Qxc5+ {[%clk 0:01:18.2]} 39... Qd6 {[%clk 0:00:19.1]} 40. Qxa7
{[%clk 0:01:17]} 40... Qd7 {[%clk 0:00:15.5]} 41. Qc5+ {[%clk 0:01:16.7]} 41...
Qd6 {[%clk 0:00:15.3]} 42. Qf2 {[%clk 0:01:15.9]} 42... Qf6 {[%clk 0:00:14.6]}
43. Qg3 {[%clk 0:01:09.4]} 43... Re8 {[%clk 0:00:14.4]} 44. Qg2 {[%clk
0:01:05.3]} 44... Re3 {[%clk 0:00:13.6]} 45. Rf1 {[%clk 0:01:05.1]} 45... Qg6
{[%clk 0:00:07.4]} 46. Rxf7+ {[%clk 0:01:05]} 46... Qxf7 {[%clk 0:00:07.8]} 47.
Bxf7 {[%clk 0:01:04.9]} 47... Re1+ {[%clk 0:00:07.9]} 48. Qg1 {[%clk 0:01:03.3]}
48... Rxg1+ {[%clk 0:00:07.7]} 49. Kxg1 {[%clk 0:01:04.2]} 49... Kxf7 {[%clk
0:00:07.8]} 50. Kf2 {[%clk 0:01:04.8]} 50... Ke6 {[%clk 0:00:08]} 51. Ke3 {[%clk
0:01:05.3]} 51... Ke5 {[%clk 0:00:08.5]} 52. Kd3 {[%clk 0:00:59.5]} 52... Bf8
{[%clk 0:00:06.5]} 53. Ke3 {[%clk 0:00:57.7]} 53... h5 {[%clk 0:00:06.9]} 54.
Kf3 {[%clk 0:00:56.6]} 54... Be7 {[%clk 0:00:07.3]} 55. Kg3 {[%clk 0:00:56.9]}
55... Ke4 {[%clk 0:00:07.6]} 56. Kg2 {[%clk 0:00:57.5]} 56... Kf4 {[%clk
0:00:07.6]} 57. Kf2 {[%clk 0:00:57.4]} 57... Bd6 {[%clk 0:00:07.4]} 58. Kg2
{[%clk 0:00:56.7]} 58... Bc5 {[%clk 0:00:07.8]} 59. Kh2 {[%clk 0:00:50.2]} 59...
Kf3 {[%clk 0:00:08]} 60. Kh1 {[%clk 0:00:51.1]} 60... Kg3 {[%clk 0:00:08.3]} 0-1

[Event "Early-Titled-Tuesday-Blitz-May-14-2024"]
[Site "Chess.com"]
[Date "2024.05.14"]
[Round "10"]
[White "RantomOpening"]
[Black "Flameboard08"]
[Result "1-0"]
[WhiteElo "2578"]
[BlackElo "2700"]
[TimeControl "180+1"]
[EndTime "9:58:04 PDT"]
[Termination "RantomOpening won by resignation"]

1. c4 {[%clk 0:03:00.9]} 1... b5 {[%clk 0:02:56.7]} 2. cxb5 {[%clk 0:02:59.6]}
2... a6 {[%clk 0:02:57.1]} 3. e3 {[%clk 0:02:55.6]} 3... axb5 {[%clk 0:02:56.8]}
4. Bxb5 {[%clk 0:02:55.5]} 4... Nf6 {[%clk 0:02:56.5]} 5. Nc3 {[%clk 0:02:55.6]}
5... Bb7 {[%clk 0:02:55.4]} 6. Nf3 {[%clk 0:02:55.2]} 6... e6 {[%clk 0:02:55.6]}
7. d4 {[%clk 0:02:54.9]} 7... c6 {[%clk 0:02:53.8]} 8. Bd3 {[%clk 0:02:53.8]}
8... d5 {[%clk 0:02:54.1]} 9. O-O {[%clk 0:02:53.7]} 9... Be7 {[%clk 0:02:54.6]}
10. a4 {[%clk 0:02:48.7]} 10... O-O {[%clk 0:02:54.1]} 11. Rb1 {[%clk
0:02:35.5]} 11... Na6 {[%clk 0:02:52.6]} 12. Na2 {[%clk 0:02:32.9]} 12... c5
{[%clk 0:02:44.1]} 13. Bb5 {[%clk 0:02:28.2]} 13... Nc7 {[%clk 0:02:39.7]} 14.
Bd3 {[%clk 0:02:24.9]} 14... Bc6 {[%clk 0:02:36.4]} 15. dxc5 {[%clk 0:02:19.7]}
15... Bxa4 {[%clk 0:02:34.3]} 16. b3 {[%clk 0:02:19.6]} 16... Be8 {[%clk
0:02:32.5]} 17. Qc2 {[%clk 0:02:15.3]} 17... Bxc5 {[%clk 0:02:28.6]} 18. Qxc5
{[%clk 0:02:09.3]} 18... Rxa2 {[%clk 0:02:27.1]} 19. Ba3 {[%clk 0:02:09.1]}
19... Nd7 {[%clk 0:02:25.2]} 20. Qe7 {[%clk 0:02:08.4]} 20... Qb8 {[%clk
0:02:06.5]} 21. Bd6 {[%clk 0:02:05]} 21... f6 {[%clk 0:01:51.8]} 22. Bxc7 {[%clk
0:01:49.3]} 22... Qxc7 {[%clk 0:01:51.2]} 23. Qxe6+ {[%clk 0:01:47.3]} 23... Bf7
{[%clk 0:01:51.4]} 24. Qh3 {[%clk 0:01:40.7]} 24... g6 {[%clk 0:01:48.6]} 25.
Rfc1 {[%clk 0:01:39.3]} 25... Qd6 {[%clk 0:01:47.8]} 26. Nd4 {[%clk 0:01:36.3]}
26... Ne5 {[%clk 0:01:45.2]} 27. Bf1 {[%clk 0:01:31.4]} 27... h5 {[%clk
0:01:33.6]} 28. b4 {[%clk 0:01:29.2]} 28... Ng4 {[%clk 0:01:30]} 29. Rc2 {[%clk
0:01:23.1]} 29... Rfa8 {[%clk 0:01:27.4]} 30. Qg3 {[%clk 0:01:19.6]} 30... Qe7
{[%clk 0:01:11]} 31. h3 {[%clk 0:01:15.9]} 31... Ne5 {[%clk 0:01:08.3]} 32. Rxa2
{[%clk 0:01:07.5]} 32... Rxa2 {[%clk 0:01:07.6]} 33. b5 {[%clk 0:01:07.9]} 33...
g5 {[%clk 0:01:03.2]} 34. Nc6 {[%clk 0:01:01.2]} 34... Nxc6 {[%clk 0:01:00.1]}
35. bxc6 {[%clk 0:01:02.1]} 35... Ra7 {[%clk 0:00:51.5]} 36. Qb8+ {[%clk
0:00:55.6]} 36... Kg7 {[%clk 0:00:50.8]} 37. Rb7 {[%clk 0:00:53.7]} 37... Rxb7
{[%clk 0:00:47.6]} 38. Qxb7 {[%clk 0:00:49.2]} 38... Kf8 {[%clk 0:00:36.9]} 39.
Qb8+ {[%clk 0:00:40.3]} 39... Kg7 {[%clk 0:00:20.3]} 40. c7 {[%clk 0:00:39.5]}
40... Be6 {[%clk 0:00:20.7]} 41. Qd8 {[%clk 0:00:36.6]} 41... Qc5 {[%clk
0:00:15.1]} 42. Ba6 {[%clk 0:00:31.6]} 42... h4 {[%clk 0:00:08.1]} 43. c8=Q
{[%clk 0:00:30.3]} 43... Bxc8 {[%clk 0:00:08.2]} 44. Qxc8 {[%clk 0:00:31.2]}
44... Qa3 {[%clk 0:00:06.8]} 45. Qd7+ {[%clk 0:00:30.5]} 45... Kh8 {[%clk
0:00:07.1]} 46. Bd3 {[%clk 0:00:23.8]} 46... Qa1+ {[%clk 0:00:06.9]} 47. Kh2
{[%clk 0:00:22.7]} 47... f5 {[%clk 0:00:02.7]} 48. Bxf5 {[%clk 0:00:21.1]} 48...
Qe5+ {[%clk 0:00:01.4]} 49. f4 {[%clk 0:00:21.4]} 49... Qg7 {[%clk 0:00:01.3]}
50. Qxg7+ {[%clk 0:00:20.5]} 50... Kxg7 {[%clk 0:00:02.2]} 51. fxg5 {[%clk
0:00:20.9]} 1-0

[Event "Early-Titled-Tuesday-Blitz-May-14-2024"]
[Site "Chess.com"]
[Date "2024.05.14"]
[Round "10"]
[White "SirGerhard"]
[Black "Artem_Koval"]
[Result "0-1"]
[WhiteElo "2707"]
[BlackElo "2582"]
[TimeControl "180+1"]
[EndTime "9:58:05 PDT"]
[Termination "Artem_Koval won by checkmate"]

1. g3 {[%clk 0:02:59.6]} 1... e5 {[%clk 0:02:59.6]} 2. Bg2 {[%clk 0:02:59.7]}
2... d5 {[%clk 0:02:59.8]} 3. c3 {[%clk 0:02:58.2]} 3... Nf6 {[%clk 0:02:44.4]}
4. d4 {[%clk 0:02:55.8]} 4... exd4 {[%clk 0:02:45.3]} 5. cxd4 {[%clk 0:02:54.4]}
5... c6 {[%clk 0:02:45.7]} 6. Nc3 {[%clk 0:02:54.2]} 6... Bf5 {[%clk 0:02:45.3]}
7. Nf3 {[%clk 0:02:49.9]} 7... Bd6 {[%clk 0:02:45.1]} 8. O-O {[%clk 0:02:47.3]}
8... O-O {[%clk 0:02:45.1]} 9. Nh4 {[%clk 0:02:43.8]} 9... Bc8 {[%clk
0:02:39.5]} 10. Qc2 {[%clk 0:02:43.3]} 10... Re8 {[%clk 0:02:34.4]} 11. f3
{[%clk 0:02:27.2]} 11... Qb6 {[%clk 0:02:19.1]} 12. e3 {[%clk 0:02:25.5]} 12...
g6 {[%clk 0:02:12.9]} 13. Kh1 {[%clk 0:02:24.5]} 13... Nbd7 {[%clk 0:02:07.7]}
14. Qf2 {[%clk 0:02:22.3]} 14... c5 {[%clk 0:01:39.3]} 15. Na4 {[%clk
0:02:12.4]} 15... Qa5 {[%clk 0:01:39.3]} 16. Nxc5 {[%clk 0:02:11.9]} 16... Nxc5
{[%clk 0:01:39.2]} 17. dxc5 {[%clk 0:02:12.1]} 17... Bxc5 {[%clk 0:01:39.9]} 18.
Bd2 {[%clk 0:02:11.8]} 18... Qb6 {[%clk 0:01:38.9]} 19. b4 {[%clk 0:01:28.2]}
19... Bxe3 {[%clk 0:01:33]} 20. Bxe3 {[%clk 0:01:27.7]} 20... Qxe3 {[%clk
0:01:32.2]} 21. Qb2 {[%clk 0:01:27.7]} 21... d4 {[%clk 0:01:17.8]} 22. f4 {[%clk
0:00:55.4]} 22... Bg4 {[%clk 0:01:03.7]} 23. Nf3 {[%clk 0:00:47.8]} 23... Bxf3
{[%clk 0:00:56.2]} 24. Bxf3 {[%clk 0:00:44.9]} 24... Ne4 {[%clk 0:00:44.5]} 25.
Rae1 {[%clk 0:00:30.6]} 25... Qd3 {[%clk 0:00:30.5]} 26. Rd1 {[%clk 0:00:18.6]}
26... Qc3 {[%clk 0:00:24.8]} 27. Qg2 {[%clk 0:00:17.3]} 27... f5 {[%clk
0:00:21.6]} 28. Rfe1 {[%clk 0:00:13.5]} 28... Nf6 {[%clk 0:00:11.5]} 29. Rxe8+
{[%clk 0:00:11.6]} 29... Rxe8 {[%clk 0:00:12.4]} 30. Bxb7 {[%clk 0:00:11.6]}
30... d3 {[%clk 0:00:12.5]} 31. Ba6 {[%clk 0:00:09.8]} 31... Re1+ {[%clk
0:00:11.1]} 32. Rxe1 {[%clk 0:00:08.1]} 32... Qxe1+ {[%clk 0:00:12]} 33. Qg1
{[%clk 0:00:08.7]} 33... d2 {[%clk 0:00:12.5]} 34. Bc4+ {[%clk 0:00:04]} 34...
Kg7 {[%clk 0:00:12]} 35. Bb3 {[%clk 0:00:04.9]} 35... Ne4 {[%clk 0:00:07.8]} 36.
Kg2 {[%clk 0:00:04.9]} 36... Qe2+ {[%clk 0:00:07.8]} 37. Kh3 {[%clk 0:00:03.7]}
37... Qh5+ {[%clk 0:00:05.9]} 38. Kg2 {[%clk 0:00:03.6]} 38... Qe2+ {[%clk
0:00:06.8]} 39. Kh3 {[%clk 0:00:03.2]} 39... Nf2+ {[%clk 0:00:06.6]} 40. Kg2
{[%clk 0:00:03.4]} 40... Ng4+ {[%clk 0:00:06.6]} 41. Kh3 {[%clk 0:00:03.7]}
41... Nf2+ {[%clk 0:00:05.5]} 42. Kg2 {[%clk 0:00:03.6]} 42... Nd3+ {[%clk
0:00:05.1]} 43. Kh3 {[%clk 0:00:03.3]} 43... Qg4+ {[%clk 0:00:05.1]} 44. Kg2
{[%clk 0:00:03.4]} 44... Nxf4+ {[%clk 0:00:04.8]} 45. Kf2 {[%clk 0:00:03.9]}
45... Qe2# {[%clk 0:00:04.9]} 0-1

[Event "Early-Titled-Tuesday-Blitz-May-14-2024"]
[Site "Chess.com"]
[Date "2024.05.14"]
[Round "10"]
[White "emeli_chess"]
[Black "rhwr"]
[Result "1-0"]
[WhiteElo "2427"]
[BlackElo "2321"]
[TimeControl "180+1"]
[EndTime "9:58:07 PDT"]
[Termination "emeli_chess won by resignation"]

1. d4 {[%clk 0:03:00.9]} 1... c5 {[%clk 0:02:58.1]} 2. d5 {[%clk 0:03:00.3]}
2... Nf6 {[%clk 0:02:57.4]} 3. c4 {[%clk 0:03:00.3]} 3... e5 {[%clk 0:02:57.5]}
4. Nc3 {[%clk 0:02:59.5]} 4... d6 {[%clk 0:02:58]} 5. e4 {[%clk 0:02:59.6]} 5...
g6 {[%clk 0:02:58]} 6. h3 {[%clk 0:02:59.1]} 6... Bg7 {[%clk 0:02:58.5]} 7. Nf3
{[%clk 0:02:59.4]} 7... O-O {[%clk 0:02:58.9]} 8. Be2 {[%clk 0:02:59.2]} 8... a6
{[%clk 0:02:58.1]} 9. O-O {[%clk 0:02:58.7]} 9... Nbd7 {[%clk 0:02:56.9]} 10. a3
{[%clk 0:02:53.3]} 10... Ne8 {[%clk 0:02:56.1]} 11. b4 {[%clk 0:02:47]} 11... b6
{[%clk 0:02:56.4]} 12. Rb1 {[%clk 0:02:46.7]} 12... f5 {[%clk 0:02:55.2]} 13.
Ng5 {[%clk 0:02:43.2]} 13... Ndf6 {[%clk 0:02:52]} 14. exf5 {[%clk 0:02:30]}
14... gxf5 {[%clk 0:02:38.7]} 15. bxc5 {[%clk 0:02:10.7]} 15... bxc5 {[%clk
0:02:38.2]} 16. Ne6 {[%clk 0:01:57.9]} 16... Bxe6 {[%clk 0:02:36.3]} 17. dxe6
{[%clk 0:01:58.3]} 17... Nc7 {[%clk 0:02:29.3]} 18. Rb6 {[%clk 0:01:39.9]} 18...
Nfe8 {[%clk 0:02:25.6]} 19. Bf3 {[%clk 0:01:06]} 19... e4 {[%clk 0:02:22.5]} 20.
Nxe4 {[%clk 0:01:06]} 20... fxe4 {[%clk 0:02:06.3]} 21. Bxe4 {[%clk 0:01:06]}
21... Rb8 {[%clk 0:02:05.9]} 22. e7 {[%clk 0:00:54.2]} 22... Qxe7 {[%clk
0:02:05.9]} 23. Bd5+ {[%clk 0:00:50.5]} 23... Nxd5 {[%clk 0:02:05.5]} 24. Qxd5+
{[%clk 0:00:50.1]} 24... Kh8 {[%clk 0:02:05.4]} 25. Rxb8 {[%clk 0:00:49.6]}
25... Bd4 {[%clk 0:01:39]} 26. Bb2 {[%clk 0:00:45.4]} 26... Bxb2 {[%clk
0:01:30.9]} 27. Rxb2 {[%clk 0:00:44.4]} 27... Nf6 {[%clk 0:01:31.8]} 28. Qd3
{[%clk 0:00:42.9]} 28... Qg7 {[%clk 0:01:29.8]} 29. Re2 {[%clk 0:00:35.1]} 29...
Rg8 {[%clk 0:01:29]} 30. g3 {[%clk 0:00:33.9]} 30... Nh5 {[%clk 0:01:28.1]} 31.
Kh2 {[%clk 0:00:28.8]} 31... Nf4 {[%clk 0:01:26]} 32. Qf3 {[%clk 0:00:26]} 32...
Nxe2 {[%clk 0:01:22.5]} 33. Qxe2 {[%clk 0:00:26.2]} 33... Qd4 {[%clk 0:01:19.9]}
34. Rd1 {[%clk 0:00:24.1]} 34... Qf6 {[%clk 0:01:19.8]} 35. Kg2 {[%clk 0:00:23]}
35... Rf8 {[%clk 0:01:19.4]} 36. Rd3 {[%clk 0:00:22]} 36... Qg7 {[%clk
0:01:15.6]} 37. Rf3 {[%clk 0:00:21.6]} 37... Rg8 {[%clk 0:01:15.5]} 38. Qe3
{[%clk 0:00:21.5]} 38... a5 {[%clk 0:01:11.1]} 39. Qc3 {[%clk 0:00:21.5]} 39...
a4 {[%clk 0:01:06.4]} 40. Qxg7+ {[%clk 0:00:20.1]} 40... Kxg7 {[%clk 0:01:06.5]}
41. Rd3 {[%clk 0:00:20.1]} 41... Rd8 {[%clk 0:01:06]} 42. f4 {[%clk 0:00:20.3]}
42... Kf6 {[%clk 0:01:06.2]} 43. Kf3 {[%clk 0:00:20.7]} 43... Ke6 {[%clk
0:01:05.9]} 44. Ke4 {[%clk 0:00:20.8]} 44... Rb8 {[%clk 0:01:04.7]} 45. f5+
{[%clk 0:00:20.3]} 45... Ke7 {[%clk 0:01:04.8]} 46. Ke3 {[%clk 0:00:17.8]} 46...
h5 {[%clk 0:00:58.3]} 47. g4 {[%clk 0:00:18.1]} 47... hxg4 {[%clk 0:00:58.1]}
48. hxg4 {[%clk 0:00:18.6]} 48... Rb2 {[%clk 0:00:44.1]} 49. Kf4 {[%clk
0:00:18.3]} 49... Rb3 {[%clk 0:00:43.4]} 50. Re3+ {[%clk 0:00:18.3]} 50... Kf7
{[%clk 0:00:41.8]} 51. g5 {[%clk 0:00:18.1]} 51... Rb1 {[%clk 0:00:38.2]} 52.
g6+ {[%clk 0:00:17.9]} 52... Kf8 {[%clk 0:00:35.3]} 53. Kg5 {[%clk 0:00:17.2]}
53... Rg1+ {[%clk 0:00:34.8]} 54. Kf6 {[%clk 0:00:17.1]} 54... Rf1 {[%clk
0:00:21.7]} 55. g7+ {[%clk 0:00:16.3]} 1-0